[Event "EICC 2025"]
[Site "Eforie-Nord"]
[Date "2025.03.16"]
[Round "2.41"]
[White "Kourkoulos-Arditis, Stamatis"]
[Black "Pancevski, Filip"]
[Result "1-0"]
[Annotator "ChessBase"]
[ECO "C42"]
[WhiteElo "2580"]
[BlackElo "2421"]
[PlyCount "88"]
[EventDate "2025.03.14"]
[EventType "swiss"]
[EventCountry "ROU"]
[SourceTitle "playchess.com"]
[Source "ChessBase"]
[SourceQuality "1"]
[TimeControl "40/5400+30:1800+30"]

1. e4 {[%emt 0:00:03]} e5 {[%emt 0:00:13]} 2. Nf3 {[%emt 0:00:05]} Nf6 {[%emt 0:00:09]} 3. Nxe5 {[%emt 0:05:12]} d6 {[%emt 0:00:07]} 4. Nf3 {[%emt 0:02:09]} Nxe4 {[%emt 0:00:17]} 5. d4 {[%emt 0:00:04]} d5 {[%emt 0:00:18]} 6. Bd3 {[%emt 0:00:06]} Be7 {[%emt 0:01:57]} 7. O-O {[%emt 0:00:17]} Bf5 {[%emt 0:00:59]} 8. c4 {[%emt 0:04:56]} Nc6 {[%emt 0:15:17]} 9. Nc3 {[%emt 0:03:57]} Nxc3 {[%emt 0:01:23]} 10. bxc3 {[%emt 0:00:05]} Bxd3 {[%emt 0:00:18]} 11. Qxd3 {[%emt 0:00:05]} O-O {[%emt 0:05:06]} 12. Re1 {[%emt 0:02:41]} Re8 {[%emt 0:04:49]} 13. Bf4 {[%emt 0:13:15]} dxc4 {[%emt 0:05:32]} 14. Qxc4 {[%emt 0:00:06]} Bd6 {[%emt 0:00:04]} 15. Ng5 {[%emt 0:07:11]} Qf6 {[%emt 0:14:17]} 16. Bxd6 {[%emt 0:00:23]} cxd6 {[%emt 0:00:29]} 17. Ne4 {[%emt 0:04:11]} Qg6 {[%emt 0:11:43]} 18. Qd5 {[%emt 0:01:02]} Re7 {[%emt 0:03:42]} 19. Re3 {[%emt 0:06:21]} Rd8 {[%emt 0:11:58]} 20. Rae1 {[%emt 0:09:12]} h6 {[%emt 0:11:15]} 21. h3 {[%emt 0:04:32]} Kh8 {[%emt 0:04:47]} 22. Ng3 {[%emt 0:08:26]} Rxe3 {[%emt 0:01:14]} 23. Rxe3 {[%emt 0:00:56]} Rd7 {[%emt 0:02:30]} 24. Nf5 {[%emt 0:13:19]} Qf6 {[%emt 0:00:46]} 25. Re8+ {[%emt 0:03:56]} Kh7 {[%emt 0:00:01]} 26. Qe4 {[%emt 0:00:09]} d5 {[%emt 0:02:10]} 27. Qg4 {[%emt 0:00:21]} Rd8 {[%emt 0:01:41]} 28. Rxd8 {[%emt 0:01:05]} Nxd8 {[%emt 0:00:00]} 29. Ne3 {[%emt 0:00:08]} g6 {[%emt 0:01:12]} 30. Qd7 {[%emt 0:02:13]} Qb6 {[%emt 0:00:40]} 31. Nxd5 {[%emt 0:01:15]} Qa5 {[%emt 0:00:03]} 32. g3 {[%emt 0:03:03]} Kg7 {[%emt 0:00:09]} 33. Nf4 {[%emt 0:02:53]} Nc6 {[%emt 0:00:34]} 34. d5 {[%emt 0:01:06]} Ne5 {[%emt 0:00:17]} 35. Qxb7 {[%emt 0:02:21]} Qxc3 {[%emt 0:00:16]} 36. d6 {[%emt 0:00:29]} Qc6 {[%emt 0:01:44]} 37. Ne6+ {[%emt 0:00:44]} Kh7 {[%emt 0:00:23]} 38. Qxc6 {[%emt 0:00:34]} Nxc6 {[%emt 0:00:01]} 39. Nc5 {[%emt 0:00:21]} Kg7 {[%emt 0:00:08]} 40. f4 {[%emt 0:00:30]} f5 {[%emt 0:00:11]} 41. Kf2 {[%emt 0:04:11]} Nd8 {[%emt 0:11:47]} 42. Ke3 {[%emt 0:00:51]} Nf7 {[%emt 0:00:07]} 43. Nb7 {[%emt 0:01:31]} Kf6 {[%emt 0:00:30]} 44. Kd4 {[%emt 0:00:11]} Ke6 {[%emt 0:00:06]} 1-0

[Event "EICC 2025"]
[Site "Eforie-Nord"]
[Date "2025.03.16"]
[Round "2.42"]
[White "Raczek, Krzysztof"]
[Black "Jobava, Baadur"]
[Result "0-1"]
[Annotator "ChessBase"]
[ECO "D12"]
[WhiteElo "2428"]
[BlackElo "2578"]
[PlyCount "54"]
[EventDate "2025.03.14"]
[EventType "swiss"]
[EventCountry "ROU"]
[SourceTitle "playchess.com"]
[Source "ChessBase"]
[SourceQuality "1"]
[TimeControl "40/5400+30:1800+30"]

1. d4 {[%emt 0:00:03]} d5 {[%emt 0:01:38]} 2. c4 {[%emt 0:00:07]} c6 {[%emt 0:00:12]} 3. Nf3 {[%emt 0:00:07]} Nf6 {[%emt 0:00:06]} 4. e3 {[%emt 0:00:05]} Bf5 {[%emt 0:02:27]} 5. Nc3 {[%emt 0:00:08]} e6 {[%emt 0:00:06]} 6. Nh4 {[%emt 0:00:32]} g6 {[%emt 0:00:21]} 7. f3 {[%emt 0:00:05]} h5 {[%emt 0:00:24]} 8. g3 {[%emt 0:03:08]} Bh6 {[%emt 0:23:06]} 9. Bg2 {[%emt 0:08:01]} dxc4 {[%emt 0:02:09]} 10. e4 {[%emt 0:00:54]} Bxc1 {[%emt 0:00:07]} 11. Rxc1 {[%emt 0:28:58]} g5 {[%emt 0:00:08]} 12. Nxf5 {[%emt 0:00:44]} exf5 {[%emt 0:00:05]} 13. Qd2 {[%emt 0:02:02]} h4 {[%emt 0:10:07]} 14. Qxg5 {[%emt 0:11:15]} Na6 {[%emt 0:05:42]} 15. Qxf5 {[%emt 0:12:45]} Rh5 {[%emt 0:02:50]} 16. Qf4 {[%emt 0:00:06]} hxg3 {[%emt 0:20:44]} 17. hxg3 {[%emt 0:02:05]} Nb4 {[%emt 0:01:55]} 18. Rd1 {[%emt 0:12:31]} Nd3+ {[%emt 0:00:23]} 19. Rxd3 {[%emt 0:00:04]} Rxh1+ {[%emt 0:00:06]} 20. Bxh1 {[%emt 0:00:03]} cxd3 {[%emt 0:00:04]} 21. d5 {[%emt 0:00:56]} cxd5 {[%emt 0:02:49]} 22. e5 {[%emt 0:00:16]} Nd7 {[%emt 0:01:17]} 23. b4 {[%emt 0:06:51]} Qb6 {[%emt 0:02:32]} 24. Kf1 {[%emt 0:03:24]} Rc8 {[%emt 0:01:24]} 25. Nxd5 {[%emt 0:00:19]} Qe6 {[%emt 0:00:48]} 26. Qd4 {[%emt 0:00:47]} Qxe5 {[%emt 0:01:02]} 27. Qxd3 {[%emt 0:00:22]} Rc1+ {[%emt 0:00:12]} 0-1

[Event "EICC 2025"]
[Site "Eforie-Nord"]
[Date "2025.03.16"]
[Round "2.43"]
[White "Yilmaz, Mustafa"]
[Black "Neverov, Valeriy"]
[Result "1-0"]
[Annotator "TA"]
[ECO "D37"]
[WhiteElo "2576"]
[BlackElo "2418"]
[PlyCount "249"]
[EventDate "2025.03.14"]
[EventType "swiss"]
[EventCountry "ROU"]
[SourceTitle "playchess.com"]
[Source "ChessBase"]
[SourceQuality "1"]
[TimeControl "40/5400+30:1800+30"]

{[%evp 13,249,5,14,14,15,0,12,6,8,8,8,2,2,-15,-10,-7,-5,-5,0,0,0,0,9,0,0,0,32,0,0,0,0,-12,-21,-59,-44,-62,0,0,0,0,0,-82,-91,-91,-90,-93,0,0,0,-13,0,0,0,0,0,0,0,0,0,0,0,0,0,0,0,0,0,0,8,0,0,0,0,0,0,0,0,0,0,0,0,0,0,0,0,0,0,0,0,0,0,0,0,0,0,0,0,0,0,0,0,0,0,0,0,0,0,0,0,0,0,0,0,0,0,0,0,0,7,7,8,7,8,8,8,8,8,8,8,8,8,8,8,0,17,8,8,8,8,8,8,0,8,8,8,8,18,18,18,18,18,18,18,18,18,18,18,0,18,0,18,18,18,18,18,18,18,18,18,18,18,18,44,8,51,65,196,196,196,196,196,196,196,196,203,203,210,196,196,196,196,196,196,196,196,196,196,0,180,172,185,195,210,196,262,210,210,210,210,210,210,183,196,196,196,203,189,196,189,182,185,0,184,185,181,189,187,191,165,165,189,165,640,639,29979,29980,29986,29981]} 1. d4 {[%emt 0:00:04]} Nf6 {[%emt 0:00:12]} 2. c4 {[%emt 0:00:10]} e6 {[%emt 0:00:10]} 3. Nf3 {[%emt 0:00:07]} d5 {[%emt 0:00:39]} 4. Nc3 {[%emt 0:00:07]} Be7 {[%emt 0:00:10]} 5. Bf4 {[%emt 0:00:06]} O-O {[%emt 0:02:44]} 6. e3 {[%emt 0:00:05]} Nbd7 {[%emt 0:01:18]} 7. c5 {[%emt 0:00:13]} Nh5 {[%emt 0:05:49]} 8. Bd3 {[%emt 0:00:07] D37: Queen's Gambit Declined: 5 Bf4.} Nxf4 {[%emt 0:00:18]} 9. exf4 {[%emt 0:00:02]} c6 {[%emt 0:00:24]} 10. O-O {[%emt 0:00:07] The position is equal.} b6 {[%emt 0:03:02]} 11. b4 {[%emt 0:00:06]} a5 {[%emt 0:01:25]} 12. a3 {[%emt 0:00:06]} Ba6 {[%emt 0:00:49]} 13. Ne2 {[%emt 0:00:06]} Qc8 {[%emt 0:13:28]} 14. Re1 $146 {[%emt 0:09:30]} (14. Rb1 axb4 15. axb4 Bc4 16. Nc1 Ra3 17. Qc2 Qa6 18. Bxh7+ Kh8 19. Re1 g6 20. Rxe6 fxe6 21. Qxg6 {1-0 Sturt,R (2494)-Raja,H (2459) Banja Vrujci GM-3 2021 (1)}) 14... Bf6 {[%emt 0:18:19]} 15. Rb1 {[%emt 0:01:48]} axb4 {[%emt 0:09:45]} 16. axb4 {[%emt 0:00:08]} Bc4 {[%emt 0:00:17]} 17. h4 {[%emt 0:31:53]} Ra3 {[%emt 0:07:38]} 18. Bxc4 {[%emt 0:06:53]} dxc4 {[%emt 0:00:03]} 19. Ng3 {[%emt 0:03:03]} (19. Qc1 $5 Qa6 20. f5 $11) 19... Rd8 {[%emt 0:11:20]} 20. Qc1 {[%emt 0:08:00]} Rxf3 {[%emt 0:03:43]} 21. gxf3 {[%emt 0:01:27]} b5 {[%emt 0:00:12]} 22. h5 {[%emt 0:14:32]} h6 {[%emt 0:01:17][%cal Od7f8]} 23. Ra1 {[%emt 0:07:05]} Bxd4 {[%emt 0:07:17]} 24. Ra7 {[%emt 0:00:39]} Qb8 {[%emt 0:01:06]} (24... Nf6 $1 $15 25. Rd1 Rd5) 25. Ra6 $11 {[%emt 0:02:25]} Bxc5 {[%emt 0:05:22]} 26. bxc5 {[%emt 0:05:56]} Nxc5 {[%emt 0:00:04]} 27. Ra1 {[%emt 0:01:52]} (27. Rxc6 $11 {remains equal.} Nd3 28. Qe3) 27... Nd3 $17 {[%emt 0:02:59][%csl LRc1,LRe1,LRf4]} 28. Qe3 {[%emt 0:00:30]} Nxe1 {[%emt 0:00:19]} (28... Qxf4 29. Qxf4 Nxf4 30. Re4 $18) 29. Rxe1 {[%emt 0:00:06]} Rd3 {[%emt 0:00:44]} (29... b4 $17 {...c3 is the strong threat.} 30. f5 Qd6) 30. Qe4 $11 {[%emt 0:04:21]} Qd6 {[%emt 0:01:04] [#]} 31. f5 {[%emt 0:00:28]} Rd1 {[%emt 0:03:13]} 32. Rxd1 {[%emt 0:02:42]} Qxd1+ {[%emt 0:00:03]} 33. Kg2 {[%emt 0:00:04]} Qd5 {[%emt 0:00:32]} 34. fxe6 {[%emt 0:01:00]} fxe6 {[%emt 0:00:04]} 35. Qg6 {[%emt 0:01:10]} Kf8 {[%emt 0:00:58]} 36. Qb1 {[%emt 0:00:30]} c3 {[%emt 0:01:03]} 37. Qb4+ {[%emt 0:00:50]} c5 {[%emt 0:00:32]} 38. Qxc3 {[%emt 0:00:37]} b4 {[%emt 0:00:07]} 39. Qc1 {[%emt 0:00:28]} b3 {[%emt 0:00:58]} 40. Ne4 {[%emt 0:00:24]} c4 {[%emt 0:00:27]} 41. Qc3 {[%emt 0:15:34]} Qb5 {[%emt 0:12:02]} 42. Qd2 {[%emt 0:03:45]} Kg8 {[%emt 0:07:56]} 43. Qd8+ {[%emt 0:08:02]} Kh7 {[%emt 0:00:04]} 44. Qc7 {[%emt 0:00:23] [#]} Kg8 {[%emt 0:06:42]} 45. Qc8+ {[%emt 0:02:07]} (45. Nc5 $5 Qe8 $8 46. Qe5 $16) 45... Kh7 {[%emt 0:00:04]} 46. Qc7 {[%emt 0:01:05]} Kg8 {[%emt 0:00:09]} 47. Nc5 {[%emt 0:02:10]} Qe8 {[%emt 0:00:54]} 48. Qe5 {[%emt 0:00:24]} Qe7 {[%emt 0:04:08][%cal Ob3b2]} 49. Ne4 {[%emt 0:00:03]} Qd7 $1 {[%emt 0:00:46]} 50. Qb8+ {[%emt 0:01:32]} Kh7 {[%emt 0:00:26]} 51. Qb4 {[%emt 0:00:27]} Qd4 {[%emt 0:01:02]} 52. Nd2 {[%emt 0:00:39]} b2 {[%emt 0:00:32]} 53. Nxc4 {[%emt 0:00:23]} (53. Qxc4 $2 Qxc4 (53... Qxd2 54. Qe4+ Kg8 55. Qxe6+ Kf8 56. Qc8+ Ke7 57. Qb7+ Kf6 58. Qc6+ Ke7 59. Qb7+ Ke6 60. Qb6+ Ke7 61. Qb7+ $11) 54. Nxc4 b1=Q $19 (54... b1=B 55. Nd6 $11)) 53... Qxc4 {[%emt 0:00:32]} 54. Qxc4 {[%emt 0:00:05]} b1=Q {[%emt 0:00:07] Repels Qc2+} 55. Qxe6 {[%emt 0:00:32][%mdl 4096] Endgame KQ-KQ. White is a pawn up.} Qb5 {[%emt 0:01:21]} 56. Qg4 {[%emt 0:00:51]} Kg8 {[%emt 0:00:40]} 57. Qe6+ {[%emt 0:00:30]} Kh8 {[%emt 0:00:28]} 58. Qg6 {[%emt 0:00:06]} Qe5 {[%emt 0:00:58]} 59. Qg4 {[%emt 0:00:40]} Qa5 {[%emt 0:00:40]} 60. Qc8+ {[%emt 0:00:47]} Kh7 {[%emt 0:00:07]} 61. Qc2+ {[%emt 0:00:28]} Kh8 {[%emt 0:00:35]} 62. Qc8+ {[%emt 0:00:15]} Kh7 {[%emt 0:00:05]} 63. Qg4 {[%emt 0:00:07]} Kh8 {[%emt 0:00:24]} 64. Kh3 {[%emt 0:01:13]} Qc5 {[%emt 0:00:36]} 65. Kg3 {[%emt 0:00:13]} Qc3 {[%emt 0:00:56]} 66. Qf5 {[%emt 0:00:32]} Qa3 {[%emt 0:00:44]} 67. Qe5 {[%emt 0:00:26]} Kg8 {[%emt 0:00:33]} 68. Qe8+ {[%emt 0:00:44]} Kh7 {[%emt 0:00:04]} 69. Qe4+ {[%emt 0:00:26]} Kh8 {[%emt 0:00:13]} 70. Qd5 {[%emt 0:00:40]} Qc3 {[%emt 0:00:41]} 71. Qa8+ {[%emt 0:00:26]} Kh7 {[%emt 0:00:05]} 72. Qe4+ {[%emt 0:00:28]} Kg8 {[%emt 0:00:49]} 73. Qd5+ {[%emt 0:00:15]} Kh8 {[%emt 0:00:53]} 74. Kg2 {[%emt 0:00:48]} Qf6 {[%emt 0:00:31]} 75. Qa8+ {[%emt 0:00:32]} Kh7 {[%emt 0:00:03]} 76. Qe4+ {[%emt 0:00:05]} g6 {[%emt 0:00:46]} 77. Kh3 {[%emt 0:00:57]} Kg7 {[%emt 0:00:23]} 78. hxg6 {[%emt 0:00:31]} Qxg6 {[%emt 0:00:20]} 79. Qg4 {[%emt 0:00:28]} h5 {[%emt 0:00:50]} 80. Qd4+ {[%emt 0:00:24]} Qf6 {[%emt 0:00:28]} 81. Qd5 {[%emt 0:00:31]} Kh6 {[%emt 0:00:29]} 82. Qe4 {[%emt 0:00:13]} Qg5 {[%emt 0:00:48]} 83. Qe3 {[%emt 0:00:39]} Kg6 {[%emt 0:00:30]} 84. Qe8+ {[%emt 0:00:39]} Kg7 {[%emt 0:00:11]} 85. Qe3 {[%emt 0:00:27]} Kg6 {[%emt 0:00:10]} 86. Qe4+ {[%emt 0:00:15]} Kg7 {[%emt 0:00:15]} 87. Qe6 {[%emt 0:00:18]} Qf6 {[%emt 0:01:04]} 88. Qe3 {[%emt 0:00:44]} Kg6 {[%emt 0:00:57]} 89. Qe4+ {[%emt 0:00:08]} Qf5+ {[%emt 0:00:33]} 90. Kh4 {[%emt 0:00:19]} Kf6 {[%emt 0:00:14]} 91. Qc6+ {[%emt 0:00:26]} Kg7 {[%emt 0:00:30]} 92. Qc7+ {[%emt 0:00:51]} Kh6 {[%emt 0:00:35]} 93. Qd6+ {[%emt 0:00:14]} Kh7 {[%emt 0:00:40]} 94. Qg3 $1 {[%emt 0:00:36]} Qf6+ {[%emt 0:00:31]} ({Black should try} 94... Qc5 $1 $14 95. Qh2 Qf5) 95. Qg5 $1 $18 {[%emt 0:00:31]} Qb2 {[%emt 0:00:30]} 96. Qxh5+ {[%emt 0:01:03]} Kg7 {[%emt 0:00:19]} 97. Qg5+ {[%emt 0:00:02]} Kf7 {[%emt 0:00:27]} 98. Kg3 {[%emt 0:00:29]} Qa1 {[%emt 0:00:40]} 99. Kg2 {[%emt 0:00:21] Inhibits Qg1+.} Qb2 {[%emt 0:00:22]} 100. Qf5+ {[%emt 0:00:07]} Kg7 {[%emt 0:00:39]} 101. Qe4 {[%emt 0:00:32]} Kf7 {[%emt 0:00:28]} 102. Qd5+ {[%emt 0:00:09]} Kg7 {[%emt 0:00:34]} 103. f4 {[%emt 0:00:15]} Qc1 {[%emt 0:00:12]} 104. Qe5+ {[%emt 0:01:49]} Kf7 {[%emt 0:00:46]} 105. Qd5+ {[%emt 0:00:42]} Kg7 $1 {[%emt 0:00:15]} 106. Kg3 {[%emt 0:00:35]} Qg1+ {[%emt 0:00:42]} 107. Qg2 {[%emt 0:00:04]} Qc1 {[%emt 0:00:32]} 108. Kh4+ {[%emt 0:01:02]} Kf7 {[%emt 0:00:31]} (108... Kf6 {was necessary.}) 109. Qd5+ {[%emt 0:00:32]} Kg7 {[%emt 0:00:30]} 110. Qe5+ {[%emt 0:00:22]} Kf7 {[%emt 0:00:23]} 111. Qf5+ {[%emt 0:00:37]} Kg7 {[%emt 0:00:16]} 112. Qe4 {[%emt 0:00:24]} Kf7 {[%emt 0:00:50]} 113. f5 {[%emt 0:00:36]} Qf1 {[%emt 0:00:34]} 114. Qe6+ {[%emt 0:00:27]} Kf8 {[%emt 0:00:09]} 115. Qf6+ {[%emt 0:00:32]} Ke8 {[%emt 0:00:32]} 116. Qg6+ {[%emt 0:00:21]} Kf8 {[%emt 0:00:22]} 117. Qf6+ {[%emt 0:00:41]} Ke8 $1 {[%emt 0:00:06]} 118. Qc6+ {[%emt 0:00:26]} Kf7 {[%emt 0:01:20]} 119. Qd5+ {[%emt 0:00:27]} Kf8 {[%emt 0:00:25]} 120. Qf3 {[%emt 0:00:40]} Kf7 {[%emt 0:00:29]} 121. Qb3+ {[%emt 0:00:24]} Ke7 {[%emt 0:00:36]} 122. Qg3 {[%emt 0:00:32] Hoping for Kg5.} Qc4+ $2 {[%emt 0:00:31]} (122... Qa1 123. Kh5 Qh8+ 124. Kg4 Qg7+ 125. Kf3 Qc3+ 126. Kg2 Qf6 127. Qc7+ Kf8) 123. Kh5 {[%emt 0:00:32] Intending Qh4+ and mate.} Kf8 {[%emt 0:00:26]} 124. Qd6+ {[%emt 0:00:27]} Kg7 {[%emt 0:00:32]} 125. Qg6+ {[%emt 0:00:09] Weighted Error Value: White=0.06 (flawless) /Black=0.06 (flawless)   Mistake:       	White=1     	Black=5      Inaccurate:     	White=2     	Black=4      OK:         	White=36    	Black=45     Best:        	White=5     	Black=15     Strong:       	White=2     	Black=3} 1-0

[Event "EICC 2025"]
[Site "Eforie-Nord"]
[Date "2025.03.16"]
[Round "2.44"]
[White "Pajeken, Jakob Leon"]
[Black "Sonis, Francesco"]
[Result "1/2-1/2"]
[Annotator "ChessBase"]
[ECO "B95"]
[WhiteElo "2427"]
[BlackElo "2570"]
[PlyCount "69"]
[EventDate "2025.03.14"]
[EventType "swiss"]
[EventCountry "ROU"]
[SourceTitle "playchess.com"]
[Source "ChessBase"]
[SourceQuality "1"]
[TimeControl "40/5400+30:1800+30"]

1. e4 {[%emt 0:00:06]} c5 {[%emt 0:00:06]} 2. Nf3 {[%emt 0:00:05]} d6 {[%emt 0:00:08]} 3. d4 {[%emt 0:00:05]} cxd4 {[%emt 0:00:04]} 4. Nxd4 {[%emt 0:00:03]} Nf6 {[%emt 0:00:07]} 5. Nc3 {[%emt 0:00:03]} a6 {[%emt 0:00:04]} 6. Bg5 {[%emt 0:00:20]} e6 {[%emt 0:00:08]} 7. Qf3 {[%emt 0:00:10]} Nbd7 {[%emt 0:01:55]} 8. O-O-O {[%emt 0:00:11]} Qc7 {[%emt 0:09:18]} 9. Qg3 {[%emt 0:00:30]} b5 {[%emt 0:10:27]} 10. Bxb5 {[%emt 0:00:12]} axb5 {[%emt 0:00:18]} 11. Ndxb5 {[%emt 0:00:04]} Qb8 {[%emt 0:14:50]} 12. Nxd6+ {[%emt 0:00:12]} Bxd6 {[%emt 0:00:05]} 13. Rxd6 {[%emt 0:00:05]} O-O {[%emt 0:03:42]} 14. Rhd1 {[%emt 0:00:04]} Kh8 {[%emt 0:05:13]} 15. Bxf6 {[%emt 0:12:04]} Nxf6 {[%emt 0:04:35]} 16. Rd8 {[%emt 0:02:01]} Qb4 {[%emt 0:03:09]} 17. a3 {[%emt 0:07:51]} Qe7 {[%emt 0:00:10]} 18. Rxf8+ {[%emt 0:02:43]} Qxf8 {[%emt 0:00:01]} 19. Qc7 {[%emt 0:00:21]} Ba6 {[%emt 0:02:00]} 20. e5 {[%emt 0:03:01]} Nd5 {[%emt 0:05:21]} 21. Nxd5 {[%emt 0:00:56]} exd5 {[%emt 0:00:05]} 22. Rxd5 {[%emt 0:01:04]} Rc8 {[%emt 0:00:05]} 23. Qd6 {[%emt 0:02:17]} Bb7 {[%emt 0:00:06]} 24. Qxf8+ {[%emt 0:03:24]} Rxf8 {[%emt 0:00:01]} 25. Rd7 {[%emt 0:00:36]} Bxg2 {[%emt 0:00:05]} 26. c4 {[%emt 0:00:59]} g5 {[%emt 0:00:26]} 27. Kd2 {[%emt 0:11:31]} Re8 {[%emt 0:00:06]} 28. Rxf7 {[%emt 0:01:43]} Rxe5 {[%emt 0:00:03]} 29. b4 {[%emt 0:01:32]} Kg8 {[%emt 0:05:02]} 30. Rc7 {[%emt 0:01:33]} Rf5 {[%emt 0:00:43]} 31. Ke2 {[%emt 0:03:32]} Re5+ {[%emt 0:08:09]} 32. Kd3 {[%emt 0:01:37]} Rf5 {[%emt 0:00:04]} 33. Ke2 {[%emt 0:04:52]} Re5+ {[%emt 0:00:04]} 34. Kd3 {[%emt 0:00:20]} Rf5 {[%emt 0:00:03]} 35. Ke2 {[%emt 0:07:27]} 1/2-1/2

[Event "EICC 2025"]
[Site "Eforie-Nord"]
[Date "2025.03.16"]
[Round "2.45"]
[White "Gorshtein, Ido"]
[Black "Kuru, Atilla"]
[Result "1-0"]
[Annotator "ChessBase"]
[ECO "A13"]
[WhiteElo "2569"]
[BlackElo "2416"]
[PlyCount "109"]
[EventDate "2025.03.14"]
[EventType "swiss"]
[EventCountry "ROU"]
[SourceTitle "playchess.com"]
[Source "ChessBase"]
[SourceQuality "1"]
[TimeControl "40/5400+30:1800+30"]

1. c4 {[%emt 0:00:06]} Nf6 {[%emt 0:00:08]} 2. Nf3 {[%emt 0:00:47]} e6 {[%emt 0:00:05]} 3. g3 {[%emt 0:00:11]} d5 {[%emt 0:00:04]} 4. Bg2 {[%emt 0:00:16]} d4 {[%emt 0:00:08]} 5. d3 {[%emt 0:02:28]} Nc6 {[%emt 0:00:32]} 6. O-O {[%emt 0:00:34]} Bc5 {[%emt 0:00:22]} 7. Na3 {[%emt 0:02:31]} O-O {[%emt 0:06:35]} 8. Nc2 {[%emt 0:00:18]} a5 {[%emt 0:01:25]} 9. Bg5 {[%emt 0:00:36]} e5 {[%emt 0:06:08]} 10. Nd2 {[%emt 0:01:56]} Be7 {[%emt 0:06:37]} 11. b3 {[%emt 0:17:38]} h6 {[%emt 0:07:30]} 12. Bxf6 {[%emt 0:00:10]} Bxf6 {[%emt 0:00:04]} 13. a3 {[%emt 0:00:33]} Be7 {[%emt 0:00:57]} 14. Rb1 {[%emt 0:03:08]} Nb8 {[%emt 0:03:13]} 15. b4 {[%emt 0:01:47]} axb4 {[%emt 0:00:14]} 16. axb4 {[%emt 0:00:11]} c6 {[%emt 0:00:19]} 17. b5 {[%emt 0:09:03]} Qc7 {[%emt 0:01:23]} 18. bxc6 {[%emt 0:09:16]} bxc6 {[%emt 0:02:07]} 19. f4 {[%emt 0:00:09]} exf4 {[%emt 0:11:16]} 20. Rxf4 {[%emt 0:00:10]} Ra2 {[%emt 0:01:25]} 21. Rf2 {[%emt 0:20:31]} Nd7 {[%emt 0:06:21]} 22. Nxd4 {[%emt 0:02:35]} Ne5 {[%emt 0:02:04]} 23. Ra1 {[%emt 0:10:39]} Rb2 {[%emt 0:11:10]} 24. N2b3 {[%emt 0:08:22]} Bg5 {[%emt 0:01:34]} 25. Kh1 {[%emt 0:01:32]} Rd8 {[%emt 0:01:44]} 26. Rf1 {[%emt 0:02:28]} Ng4 {[%emt 0:04:11]} 27. Qe1 {[%emt 0:01:08]} c5 {[%emt 0:03:16]} 28. Qc3 {[%emt 0:01:23]} cxd4 {[%emt 0:01:50]} 29. Qxb2 {[%emt 0:00:06]} Ne3 {[%emt 0:03:52]} 30. Nd2 {[%emt 0:01:34]} Nxf1 {[%emt 0:00:54]} 31. Rxf1 {[%emt 0:00:13]} Be6 {[%emt 0:00:30]} 32. Rb1 {[%emt 0:00:31]} h5 {[%emt 0:01:04]} 33. Ne4 {[%emt 0:00:47]} Be3 {[%emt 0:02:55]} 34. Qb6 {[%emt 0:00:58]} Qe7 {[%emt 0:01:11]} 35. Qc5 {[%emt 0:00:40]} Qd7 {[%emt 0:00:09]} 36. Qb5 {[%emt 0:00:55]} Qa7 {[%emt 0:01:24]} 37. Qxh5 {[%emt 0:00:42]} Qa2 {[%emt 0:01:03]} 38. Rf1 {[%emt 0:00:08]} Rb8 {[%emt 0:00:15]} 39. Qf3 {[%emt 0:01:41]} Qa5 {[%emt 0:02:17]} 40. h4 {[%emt 0:00:41]} Qe5 {[%emt 0:01:15]} 41. Nf2 {[%emt 0:04:28]} f5 {[%emt 0:00:56]} 42. Nh3 {[%emt 0:00:40]} g6 {[%emt 0:03:33]} 43. Ra1 {[%emt 0:02:13]} Kg7 {[%emt 0:00:14]} 44. Ra7+ {[%emt 0:02:06]} Kh6 {[%emt 0:00:16]} 45. Kh2 {[%emt 0:02:04]} Rb2 {[%emt 0:06:05]} 46. Nf4 {[%emt 0:05:35]} Bxf4 {[%emt 0:02:18]} 47. Qxf4+ {[%emt 0:01:16]} Qxf4 {[%emt 0:00:04]} 48. gxf4 {[%emt 0:00:06]} Rxe2 {[%emt 0:00:07]} 49. Re7 {[%emt 0:01:06]} Re3 {[%emt 0:00:07]} 50. c5 {[%emt 0:07:30]} Bd5 {[%emt 0:00:57]} 51. Re5 {[%emt 0:00:57]} Bb3 {[%emt 0:03:00]} 52. Rxe3 {[%emt 0:00:36]} dxe3 {[%emt 0:00:03]} 53. Kg3 {[%emt 0:00:09]} Kg7 {[%emt 0:00:21]} 54. Bb7 {[%emt 0:00:18]} Kf6 {[%emt 0:00:04]} 55. Kf3 {[%emt 0:00:08]} 1-0

[Event "EICC 2025"]
[Site "Eforie-Nord"]
[Date "2025.03.17"]
[Round "3.1"]
[White "Sarana, Alexey"]
[Black "Samunenkov, Ihor"]
[Result "1/2-1/2"]
[Annotator "TA"]
[ECO "D47"]
[WhiteElo "2689"]
[BlackElo "2556"]
[PlyCount "39"]
[EventDate "2025.03.14"]
[EventType "swiss"]
[EventCountry "ROU"]
[SourceTitle "playchess.com"]
[Source "ChessBase"]
[SourceQuality "1"]
[TimeControl "40/5400+30:1800+30"]

{[%evp 24,39,20,28,29,3,16,8,31,34,24,-19,-23,-19,-28,-30,0,0]} 1. d4 {[%emt 0:00:01]} d5 {[%emt 0:00:09]} 2. c4 {[%emt 0:00:08]} c6 {[%emt 0:00:07]} 3. Nf3 {[%emt 0:00:25]} Nf6 {[%emt 0:00:10]} 4. Nc3 {[%emt 0:00:30]} e6 {[%emt 0:00:09]} 5. e3 {[%emt 0:00:17]} Nbd7 {[%emt 0:00:09]} 6. Bd3 {[%emt 0:00:20]} dxc4 {[%emt 0:00:19]} 7. Bxc4 {[%emt 0:00:10]} b5 {[%emt 0:00:09]} 8. Be2 {[%emt 0:00:38]} Bb7 {[%emt 0:08:30]} 9. O-O {[%emt 0:01:04]} Be7 {[%emt 0:00:47]} 10. e4 {[%emt 0:00:09]} b4 {[%emt 0:05:48]} 11. e5 {[%emt 0:00:25]} bxc3 {[%emt 0:00:10]} 12. exf6 {[%emt 0:00:09]} Nxf6 {[%emt 0:02:20]} 13. bxc3 {[%emt 0:00:57]} O-O {[%emt 0:04:51] D47: Semi-Slav: Meran System.} 14. Rb1 $1 {[%emt 0:00:11] Inhibits c5.} Qc8 {[%emt 0:05:08]} 15. Qb3 {[%emt 0:10:01]} Ba6 {[%emt 0:03:04]} 16. Bxa6 {[%emt 0:20:37]} Qxa6 {[%emt 0:00:08]} 17. Ne5 {[%emt 0:01:08]} Bd6 $1 {[%emt 0:12:44]} 18. Qc4 {[%emt 0:00:24]} Qa5 {[%emt 0:04:53]} 19. Bf4 $146 {[%emt 0:06:01]} ({Predecessor:} 19. Re1) 19... Nd5 {[%emt 0:15:42]} 20. Nxc6 {[%emt 0:56:55] Not much happened in this game.   Weighted Error Value: White=0.08 (flawless) /Black=0.07 (flawless)   Inaccurate:     	White=1     	Black=1      OK:         	White=3     	Black=2      Best:        	White=1     	---        Strong:       	White=1     	Black=1} 1/2-1/2